bitfinex/quotes_SOLUSD_20250204
["timestamp","ask_amount","ask_price","bid_price","bid_amount"]
[1738706576741,2.701e-05,203.8,203.79,13.91380853]
[1738706577056,2.701e-05,203.8,203.79,13.53733853]
[1738706578070,2.701e-05,203.8,203.73,38.01312143]
[1738706578260,38.01314844,203.8,203.71,38.01312143]
[1738706578462,38.01314844,203.8,203.72,13.78831853]
[1738706578759,2.4535,203.79,203.72,13.66282853]
[1738706578954,2.4535,203.79,203.67,38.01312143]
[1738706579152,38.01312143,203.72,203.63,38.01312143]
[1738706579354,2.0,203.78,203.58,0.063]
[1738706579355,11.8296,203.73,203.71,312.0]
[1738706579865,11.8296,203.73,203.61,38.01312143]
[1738706580065,38.01312143,203.67,203.58,0.063]
[1738706580278,38.01312143,203.63,203.58,0.063]
[1738706580467,38.01312143,203.65,203.58,0.063]
[1738706580767,38.01312143,203.59,203.58,0.063]
[1738706580940,50.12852143,203.59,203.54,0.063]
[1738706581145,38.01312143,203.55,203.54,0.063]
[1738706581360,38.01312143,203.55,203.42,38.01312143]
[1738706581573,38.01312143,203.5,203.42,38.01312143]
[1738706581744,12.24089,203.59,203.48,38.01312143]
[1738706581745,38.01312143,203.57,203.48,38.01312143]
[1738706582069,12.1154,203.59,203.54,38.01312143]
[1738706582568,7.1376,203.67,203.56,38.26410143]
[1738706582569,2.4553,203.64,203.56,38.26410143]
[1738706582865,12.1007,203.66,203.63,312.0]
[1738706583067,2.4545,203.7,203.64,38.13861143]
[1738706583272,2.4544,203.72,203.66,38.01312143]
[1738706583452,38.01312143,203.71,203.62,38.01312143]
[1738706583781,2.4544,203.72,203.56,4.9124]
[1738706583782,38.01312143,203.78,203.7,38.01312143]
[1738706583957,2.4535,203.79,203.73,0.12549]
[1738706584152,2.4535,203.79,203.75,13.53733853]
[1738706584354,2.701e-05,203.8,203.77,13.53733853]
[1738706584665,2.4535,203.79,203.76,38.01312143]
[1738706584868,2.701e-05,203.8,203.74,38.01312143]
[1738706585056,2.701e-05,203.8,203.75,13.78831853]
[1738706585454,38.01312143,203.78,203.68,38.01312143]
[1738706585768,38.01314844,203.8,203.7,38.01312143]
[1738706585953,38.01312143,203.77,203.68,38.01312143]
[1738706586145,2.701e-05,203.8,203.77,20.0]
[1738706586346,2.701e-05,203.8,203.79,363.55045996]
[1738706586541,2.701e-05,203.8,203.79,363.92692996]
[1738706586861,2.701e-05,203.8,203.79,350.01312143]
[1738706587053,38.01314844,203.8,203.79,312.0]
[1738706587258,76.02626987,203.8,203.66,38.01312143]
[1738706587453,38.01312143,203.75,203.66,38.01312143]
[1738706587656,38.01312143,203.75,203.6,38.01312143]
[1738706587657,38.01312143,203.69,203.6,38.01312143]
[1738706587860,38.01312143,203.71,203.62,38.01312143]
[1738706588153,38.01312143,203.77,203.71,0.12549]
[1738706588356,38.01312143,203.79,203.71,13.53733853]
[1738706588570,38.01312143,203.77,203.7,312.0]
[1738706588761,0.10766736,203.72,203.7,38.01312143]
[1738706588962,0.10766736,203.72,203.71,13.78831853]
[1738706590186,0.10766736,203.72,203.68,38.01312143]
[1738706590352,0.10766736,203.72,203.7,38.01312143]
[1738706590548,0.10766736,203.72,203.71,13.91380853]
[1738706590956,38.12078879,203.72,203.63,38.01312143]
[1738706591443,38.12078879,203.72,203.65,0.12549]
[1738706591663,0.10766736,203.72,203.71,312.0]
[1738706591852,0.10766736,203.72,203.71,325.78831853]
[1738706592253,0.10766736,203.72,203.71,363.80143996]
[1738706592489,0.10766736,203.72,203.71,312.12549]
[1738706592665,0.10766736,203.72,203.71,312.0]
[1738706592870,0.10766736,203.72,203.71,312.12549]
[1738706593550,0.10766736,203.72,203.71,325.78831853]
[1738706594151,0.10766736,203.72,203.71,325.91380853]
[1738706594348,0.10766736,203.72,203.71,363.92692996]
[1738706595191,0.10766736,203.72,203.71,325.91380853]
[1738706595693,0.03,203.87,203.78,20.0]
[1738706595860,0.03,203.87,203.8,51.92692996]
[1738706597881,38.01312143,203.86,203.8,13.53733853]
[1738706598091,38.01312143,203.84,203.75,38.01312143]
[1738706598262,38.01312143,203.78,203.7,38.01312143]
[1738706598594,38.01312143,203.76,203.7,20.0]
[1738706598785,38.01312143,203.78,203.75,312.0]
[1738706598954,38.01312143,203.78,203.76,0.12549]
[1738706599152,0.09692932,203.81,203.79,0.37647]
[1738706599389,0.09692932,203.81,203.8,13.91380853]
[1738706599593,0.09692932,203.81,203.8,13.78831853]
[1738706599893,0.09692932,203.81,203.8,13.53733853]
[1738706600196,0.09692932,203.81,203.8,13.78831853]
[1738706600695,0.09692932,203.81,203.73,38.01312143]
[1738706600861,0.09692932,203.81,203.76,13.91380853]
[1738706601067,1.9627,203.8,203.76,13.78831853]
[1738706601287,0.09692932,203.81,203.76,13.78831853]
[1738706601678,0.09692932,203.81,203.8,0.25098]
[1738706601874,0.09692932,203.81,203.8,13.91380853]
[1738706602274,0.09692932,203.81,203.8,330.82050853]
[1738706602977,0.09692932,203.81,203.8,312.0]
[1738706603398,2.05952932,203.81,203.8,312.0]
[1738706604258,0.09692932,203.81,203.8,312.12549]
[1738706604478,0.09692932,203.81,203.8,325.78831853]
[1738706604667,0.09692932,203.81,203.8,325.91380853]
[1738706604885,0.09692932,203.81,203.8,330.82050853]
[1738706605593,0.09692932,203.81,203.8,360.82050853]
[1738706606299,0.09692932,203.81,203.8,330.82050853]
[1738706606868,0.09692932,203.81,203.8,360.82050853]
[1738706607374,0.09692932,203.81,203.8,330.82050853]
[1738706607578,0.09692932,203.81,203.8,325.53733853]
[1738706607979,0.09692932,203.81,203.8,312.12549]
[1738706608183,0.09692932,203.81,203.8,312.0]
[1738706608184,2.05952932,203.81,203.8,312.0]
[1738706608386,0.09692932,203.81,203.8,312.0]
[1738706608567,0.20164713,203.81,203.8,312.0]
[1738706609402,0.20164713,203.81,203.8,325.91380853]
[1738706609576,0.20164713,203.81,203.8,398.83362996]
[1738706609783,0.10471781,203.81,203.8,398.83362996]
[1738706610327,0.10471781,203.81,203.8,360.82050853]
[1738706610474,0.10471781,203.81,203.8,398.83362996]
[1738706610681,0.10471781,203.81,203.8,312.12549]
[1738706611275,0.10471781,203.81,203.8,325.91380853]
[1738706611476,0.10471781,203.81,203.8,312.12549]
[1738706611692,0.10471781,203.81,203.8,312.0]
[1738706611912,40.08043924,203.81,203.8,312.0]
[1738706612069,1.0,203.8,203.66,38.01312143]
[1738706612271,38.01312143,203.75,203.67,4.9098]
[1738706612580,1.963,203.76,203.69,13.78831853]
[1738706612776,38.01312143,203.73,203.64,38.01312143]
[1738706612977,38.01312143,203.73,203.72,312.0]
[1738706613211,40.01312143,203.73,203.59,7.6241971]
[1738706613572,40.01312143,203.73,203.6,38.01312143]
[1738706613967,40.01312143,203.73,203.61,13.78831853]
[1738706614196,39.01312143,203.73,203.72,312.0]
[1738706614388,40.01312143,203.73,203.61,13.66282853]
[1738706614604,1.9634,203.72,203.62,38.01312143]
[1738706614927,1.9634,203.72,203.63,13.66282853]
[1738706615228,1.9634,203.72,203.71,0.0001]
[1738706615229,2.9634,203.72,203.71,0.0001]
[1738706615389,2.9634,203.72,203.71,312.0001]
[1738706615594,21.0,203.69,203.58,38.01312143]
[1738706615895,38.01312143,203.66,203.59,13.66282853]
[1738706616223,38.01312143,203.68,203.6,0.12549]
[1738706616433,38.01312143,203.66,203.56,38.13861143]
[1738706616606,38.01312143,203.61,203.54,0.063]
[1738706616805,38.01312143,203.59,203.54,0.063]
[1738706617297,38.01312143,203.55,203.54,0.063]
[1738706617626,38.01312143,203.55,203.54,312.063]
[1738706618193,1.17222024,203.62,203.54,312.063]
[1738706618194,38.01312143,203.59,203.54,0.063]
[1738706618395,38.01312143,203.63,203.55,0.12549]
[1738706618808,38.01312143,203.65,203.57,0.12549]
[1738706619213,11.9453,203.67,203.54,0.31398]
[1738706619214,38.01312143,203.63,203.54,58.32710143]
[1738706619399,38.01312143,203.63,203.54,58.07612143]
[1738706619599,1.9643,203.64,203.54,0.063]
[1738706619600,38.01312143,203.61,203.54,0.063]
[1738706620228,38.01312143,203.57,203.54,0.063]
[1738706620436,38.01312143,203.59,203.54,0.063]
[1738706620606,38.01312143,203.57,203.54,0.063]
[1738706620923,1.9648,203.58,203.54,0.063]
[1738706621120,0.9824,203.58,203.57,312.0]
[1738706621640,0.9824,203.58,203.54,0.063]
[1738706621814,38.01312143,203.55,203.54,0.063]
[1738706622409,3.4384,203.58,203.54,0.063]
[1738706622410,38.01312143,203.57,203.54,0.063]
[1738706622615,0.9825,203.56,203.54,0.063]
[1738706623539,38.01312143,203.55,203.54,0.063]
[1738706625041,0.9825,203.56,203.54,0.063]
[1738706625222,0.9824,203.58,203.54,0.063]
[1738706625429,38.99552143,203.58,203.54,0.063]
[1738706625628,38.99552143,203.58,203.57,312.0]
[1738706627059,0.9824,203.58,203.57,312.0]
[1738706627345,0.9823,203.6,203.57,312.0]
[1738706627528,0.9823,203.6,203.55,0.25098]
[1738706628036,38.01312143,203.58,203.54,0.063]
[1738706628239,38.01312143,203.56,203.54,0.063]
[1738706628642,0.09689139,203.55,203.54,0.063]
[1738706628858,0.09689139,203.55,203.54,76.90292996]
[1738706629024,0.08870433,203.56,203.55,13.91380853]
[1738706629443,0.08870433,203.56,203.54,0.063]
[1738706629822,0.08870433,203.56,203.55,13.91380853]
[1738706630140,4.33e-06,203.56,203.55,13.91380853]
[1738706630442,4.33e-06,203.56,203.55,325.91380853]
[1738706632045,38.99462143,203.76,203.62,30.0]
[1738706632247,6.753e-05,203.64,203.63,1.0]
[1738706632430,6.753e-05,203.64,203.63,16.13864452]
[1738706632749,3.0339,203.8,203.74,38.01312143]
[1738706632750,0.9813,203.8,203.74,38.01312143]
[1738706632921,0.03,203.81,203.76,38.01312143]
[1738706633250,0.03,203.81,203.74,38.01312143]
[1738706633751,0.03,203.81,203.75,13.91380853]
[1738706633964,0.03,203.81,203.77,38.01312143]
[1738706634547,0.03,203.81,203.75,38.01312143]
[1738706634947,38.01312143,203.78,203.69,38.01312143]
[1738706635244,38.01312143,203.7,203.61,42.92422143]
[1738706635443,38.01312143,203.74,203.65,38.01312143]
[1738706635751,38.01312143,203.74,203.66,13.78831853]
[1738706635938,38.99462143,203.76,203.68,13.78831853]
[1738706636755,38.99462143,203.76,203.7,13.41184853]
[1738706636957,38.01312143,203.78,203.72,13.41184853]
[1738706637262,38.01312143,203.78,203.69,0.12549]
[1738706637263,38.99452143,203.78,203.69,38.01312143]
[1738706637553,38.01312143,203.76,203.67,38.01312143]
[1738706637757,38.01312143,203.76,203.68,13.78831853]
[1738706638148,38.99462143,203.76,203.75,312.0]
[1738706638340,39.02462143,203.76,203.75,312.0]
[1738706638652,39.02462143,203.76,203.63,30.0]
[1738706638653,1.0,203.74,203.62,38.01312143]
[1738706638850,38.01312143,203.73,203.65,13.66282853]
[1738706639054,38.01312143,203.73,203.67,13.78831853]
[1738706639236,1.0115,203.76,203.68,38.13861143]
[1738706639559,1.0115,203.76,203.75,312.0]
[1738706639755,0.03,203.76,203.75,312.0]
[1738706640161,0.03,203.76,203.74,0.12549]
[1738706640327,0.03,203.76,203.73,20.0]
[1738706640650,38.01312143,203.75,203.73,20.0]
[1738706640843,0.03,203.76,203.75,20.0]
[1738706641155,1.0,203.73,203.64,38.01312143]
[1738706641355,38.01312143,203.67,203.58,38.01312143]
[1738706641651,38.01312143,203.65,203.56,38.01312143]
[1738706641950,38.01312143,203.71,203.64,13.66282853]
[1738706642127,38.01312143,203.66,203.56,38.01312143]
[1738706642332,38.01312143,203.64,203.54,38.07612143]
[1738706642552,38.01312143,203.57,203.54,0.063]
[1738706642752,38.01312143,203.59,203.54,0.063]
[1738706642937,38.01312143,203.57,203.54,0.063]
[1738706643130,38.01312143,203.57,203.56,312.0]
[1738706643333,38.01312143,203.57,203.5,0.063]
[1738706643334,1.25098,203.54,203.5,0.063]
[1738706643548,77.27722286,203.51,203.5,0.0001]
[1738706643854,1.0,203.46,203.33,0.063]
[1738706644034,38.01312143,203.39,203.33,0.063]
[1738706644355,38.01312143,203.41,203.38,312.0]
[1738706644651,38.01312143,203.39,203.38,312.0]
[1738706644850,38.01312143,203.41,203.38,312.0]
[1738706645037,38.01312143,203.39,203.38,312.0]
[1738706645235,38.01312143,203.39,203.33,0.063]
[1738706645443,38.01312143,203.34,203.33,0.063]
[1738706645835,1.0,203.38,203.33,0.063]
[1738706645836,38.01312143,203.39,203.33,0.063]
[1738706646031,38.01312143,203.35,203.33,0.063]
[1738706646231,0.61719,203.34,203.31,0.063]
[1738706646441,38.01312143,203.32,203.31,0.063]
[1738706646959,38.01312143,203.3,203.28,0.063]
[1738706647252,0.25098,203.25,203.13,38.01312143]
[1738706647455,38.01312143,203.18,203.11,38.01312143]
[1738706647768,38.01312143,203.2,203.11,38.01312143]
[1738706648357,0.4921,203.19,203.11,38.01312143]
[1738706648559,38.50522143,203.22,203.13,38.01312143]
[1738706648854,0.09744932,203.14,203.1,20.063]
[1738706649038,0.09744932,203.14,203.13,38.01312143]
[1738706649358,0.09744932,203.14,203.13,51.67594996]
[1738706649559,0.09744932,203.14,203.13,51.80143996]
[1738706649747,0.09744932,203.14,203.13,51.92692996]
[1738706649954,0.09744932,203.14,203.13,51.80143996]
[1738706650459,0.09744932,203.14,203.13,51.92692996]
[1738706650633,0.09744932,203.14,203.13,363.92692996]
[1738706650838,0.09586161,203.15,203.14,18.83650853]
[1738706651046,0.09586161,203.15,203.14,13.91380853]
[1738706651449,0.09586161,203.15,203.13,38.01312143]
[1738706651651,0.09586161,203.15,203.12,38.01312143]
[1738706651861,0.09586161,203.15,203.14,20.0]
[1738706652456,0.09586161,203.15,203.11,0.063]
[1738706652951,0.09586161,203.15,203.12,20.0]
[1738706653146,0.09586161,203.15,203.1,0.0001]
[1738706653147,1.37647,203.11,203.1,0.0001]
[1738706653348,40.18769711,203.11,203.1,0.0001]
[1738706653661,38.01312143,203.11,203.1,0.0001]
[1738706653859,38.10898304,203.15,203.1,0.0001]
[1738706654046,0.09586161,203.15,203.1,0.0001]
[1738706654240,0.09586161,203.15,203.14,312.0]
[1738706655062,38.10898304,203.15,203.14,312.0]
[1738706655258,40.23447304,203.15,203.1,0.0001]
[1738706655461,38.01312143,203.11,203.1,0.0001]
[1738706656152,39.26410143,203.11,203.1,0.0001]
[1738706656353,38.01312143,203.08,203.07,0.063]
[1738706656744,33.64652143,203.08,203.07,0.063]
[1738706657061,33.64652143,203.08,203.06,0.0001]
[1738706657062,1.12549,203.07,203.06,0.0001]
[1738706657260,35.57005096,203.08,203.06,0.0001]
[1738706657261,33.64652143,203.08,203.06,312.0001]
[1738706657652,1.0,203.12,203.06,312.0001]
[1738706657653,38.01312143,203.12,203.06,312.0001]
[1738706657856,38.01312143,203.12,203.06,0.0001]
[1738706658065,0.09586161,203.15,203.07,38.01312143]
[1738706658555,38.01312143,203.14,203.07,38.01312143]
[1738706658751,0.09586161,203.15,203.07,38.01312143]
[1738706658963,0.09586161,203.15,203.08,13.53733853]
[1738706659354,0.09586161,203.15,203.1,13.53733853]
[1738706659552,0.09586161,203.15,203.14,0.37647]
[1738706659864,0.09586161,203.15,203.14,13.91380853]
[1738706660247,0.09586161,203.15,203.14,13.66282853]
[1738706660462,0.09586161,203.15,203.09,38.01312143]
[1738706660848,0.09586161,203.15,203.14,312.0]
[1738706662874,0.12586161,203.15,203.14,312.0]
[1738706663868,0.12586161,203.15,203.14,325.91380853]
[1738706664244,0.12586161,203.15,203.14,330.83650853]
[1738706664558,0.12586161,203.15,203.14,330.71101853]
[1738706664744,0.12586161,203.15,203.14,330.83650853]
[1738706665063,0.01539402,203.19,203.16,1.0]
[1738706665370,38.01312143,203.32,203.2,33.91380853]
[1738706665663,38.01312143,203.32,203.2,76.84812996]
[1738706666357,38.01312143,203.22,203.14,38.01312143]
[1738706666563,38.01312143,203.22,203.07,1.0]
[1738706666564,38.01312143,203.2,203.1,38.01312143]
[1738706666763,38.01312143,203.2,203.14,33.66282853]
[1738706666962,38.01312143,203.16,203.08,38.01312143]
[1738706667153,38.01312143,203.16,203.07,0.12549]
[1738706667359,38.01312143,203.16,203.07,13.78831853]
[1738706667665,38.01312143,203.16,203.09,0.12549]
[1738706667842,38.01312143,203.2,203.11,13.66282853]
[1738706668045,38.01312143,203.14,203.06,0.0001]
[1738706668271,38.01312143,203.14,203.13,312.0]
[1738706668669,38.11535327,203.14,203.13,312.0]
[1738706669553,0.10223184,203.14,203.13,312.0]
[1738706669765,0.10223184,203.14,203.13,312.12549]
[1738706670066,0.10223184,203.14,203.13,312.0]
[1738706670959,38.11535327,203.14,203.13,312.0]
[1738706671759,39.11535327,203.14,203.06,0.0001]
[1738706671954,38.01312143,203.11,203.06,0.0001]
[1738706672571,0.10223184,203.14,203.06,0.25108]
[1738706672572,38.01312143,203.13,203.06,0.25108]
[1738706672795,0.10223184,203.14,203.12,312.0]
[1738706673268,0.10223184,203.14,203.09,38.01312143]
[1738706673492,0.10223184,203.14,203.07,38.01312143]
[1738706673656,0.10223184,203.14,203.08,13.53733853]
[1738706673984,0.10223184,203.14,203.09,0.12549]
[1738706674156,0.10223184,203.14,203.13,0.12549]
[1738706674354,0.10223184,203.14,203.13,51.92692996]
[1738706674773,38.01312143,203.33,203.21,20.0]
[1738706675072,0.03,203.35,203.3,13.53733853]
[1738706675285,0.03,203.35,203.32,13.53733853]
[1738706675494,0.03,203.35,203.33,38.01312143]
[1738706675653,0.03,203.35,203.34,13.78831853]
[1738706675854,49.91792143,203.51,203.38,20.0]
[1738706676166,38.01312143,203.57,203.5,332.0]
[1738706676475,38.01312143,203.59,203.52,38.01312143]
[1738706676650,0.92127991,203.66,203.54,38.01312143]
[1738706676651,38.01312143,203.63,203.54,38.01312143]
[1738706676976,38.01312143,203.65,203.57,20.0]
[1738706677172,45.57336972,203.67,203.61,20.0]
[1738706677358,38.01312143,203.65,203.56,38.01312143]
[1738706677560,0.92095304,203.68,203.54,62.876665]
[1738706677775,14.1424078,203.63,203.57,9.85588051]
[1738706678075,38.01312143,203.69,203.63,20.0]
[1738706678276,38.01312143,203.71,203.67,7.44564564]
[1738706678573,0.95057465,203.76,203.68,24.05074907]
[1738706678574,38.01312143,203.73,203.68,24.05074907]
[1738706678877,0.03,203.76,203.71,0.12549]
[1738706679055,0.03,203.76,203.72,24.91481382]
[1738706679256,2.1485712,203.87,203.69,67.58622469]
[1738706679257,7.46110034,203.9,203.76,1.0]
[1738706679456,38.01312143,203.78,203.76,1.0]
[1738706679676,38.01312143,203.78,203.77,312.0]
[1738706680350,20.25098,203.76,203.75,13.51643061]
[1738706680663,0.12549,203.74,203.69,29.50561115]
[1738706680854,76.52820286,203.7,203.69,29.50561115]
[1738706681053,0.25098,203.66,203.63,45.36116635]
[1738706681252,38.26410143,203.64,203.63,45.36116635]
[1738706681777,38.01312143,203.64,203.63,45.36116635]
[1738706682377,38.01312143,203.64,203.58,1.0]
[1738706682676,38.01312143,203.66,203.61,1.0]
[1738706683074,38.01312143,203.66,203.63,1.0]
[1738706683276,38.01312143,203.66,203.65,312.0]
[1738706683583,38.01312143,203.68,203.65,312.0]
[1738706683876,38.01312143,203.68,203.63,1.0]
[1738706685280,38.01312143,203.66,203.63,1.0]
[1738706686098,38.01312143,203.72,203.65,2.0]
[1738706686263,38.01312143,203.72,203.68,2.0]
[1738706686759,38.01312143,203.76,203.72,1.0]
[1738706686960,38.01312143,203.76,203.71,312.0]
[1738706687181,38.01312143,203.76,203.72,14.41184853]
[1738706687384,38.01312143,203.76,203.73,1.0]
[1738706688161,20.0,203.71,203.66,1.0]
[1738706688368,38.01312143,203.67,203.64,1.0]
[1738706688661,38.1210685,203.67,203.63,1.0]
[1738706688859,38.01312143,203.65,203.6,1.0]
[1738706689075,38.01312143,203.63,203.58,1.0]
[1738706689273,38.01312143,203.61,203.56,1.0]
[1738706689472,1.14942174,203.67,203.56,1.0]
[1738706689473,38.01312143,203.59,203.56,1.0]
[1738706690493,38.01312143,203.59,203.56,312.0]
[1738706690780,38.01312143,203.59,203.53,2.0]
[1738706690991,38.01312143,203.55,203.5,1.0]
[1738706691197,38.01312143,203.51,203.47,2.0]
[1738706691482,38.01312143,203.49,203.48,1.0]
[1738706691779,38.01312143,203.51,203.48,1.0]
[1738706691970,38.01312143,203.51,203.46,32.85293508]
[1738706692288,38.01312143,203.49,203.46,32.85293508]
[1738706693166,58.51508143,203.47,203.46,32.85293508]
[1738706693566,58.13861143,203.47,203.46,32.85293508]
[1738706694085,38.01312143,203.47,203.46,32.85293508]
[1738706694267,38.51508143,203.47,203.46,32.85293508]
[1738706694472,38.13861143,203.47,203.46,32.85293508]
[1738706694667,38.01312143,203.47,203.46,32.85293508]
[1738706695070,38.13861143,203.47,203.46,32.85293508]
[1738706695391,38.13861143,203.47,203.41,1.0]
[1738706695584,38.01312143,203.44,203.41,1.0]
[1738706695961,38.01312143,203.52,203.51,1.0]
[1738706696159,38.01312143,203.52,203.49,1.0]
[1738706696476,38.01312143,203.5,203.46,1.0]
[1738706697186,38.01312143,203.5,203.42,38.01312143]
[1738706697187,38.01312143,203.48,203.43,1.0]
[1738706697498,38.01312143,203.46,203.44,1.0]
[1738706697674,38.01312143,203.48,203.47,1.0]
[1738706697860,38.01312143,203.55,203.51,1.0]
[1738706698285,38.01312143,203.57,203.54,1.0]
[1738706699108,1.22340565,203.64,203.5,1.0]
[1738706699109,38.01312143,203.55,203.5,1.0]
[1738706699275,38.01312143,203.55,203.46,1.063]
[1738706699276,38.01312143,203.51,203.46,0.063]
[1738706699463,38.01312143,203.47,203.46,0.063]
[1738706700207,38.01312143,203.47,203.46,312.063]
[1738706700505,0.50196,203.43,203.35,1.0]
[1738706700661,38.01312143,203.37,203.33,1.0]
[1738706701085,38.01312143,203.37,203.34,1.0]
[1738706701662,38.01312143,203.37,203.35,1.0]
[1738706701863,38.01312143,203.39,203.32,1.0]
[1738706702074,38.01312143,203.39,203.26,2.0]
[1738706702075,38.01312143,203.33,203.26,2.0]
[1738706702270,38.01312143,203.27,203.25,0.063]
[1738706702580,38.01312143,203.31,203.28,1.0]
[1738706702765,38.01312143,203.36,203.32,1.0]
[1738706702970,38.01312143,203.38,203.35,1.0]
[1738706703179,24.59032213,203.56,203.38,1.0]
[1738706703180,38.01312143,203.41,203.38,1.0]
[1738706703382,38.01312143,203.45,203.4,2.0]
[1738706703867,38.01312143,203.43,203.38,1.0]
[1738706704071,38.01312143,203.43,203.3,1.0]
[1738706704072,38.01312143,203.39,203.3,1.0]
[1738706704284,38.01312143,203.38,203.35,1.0]
[1738706704503,38.01312143,203.41,203.38,2.0]
[1738706704710,38.01312143,203.43,203.4,1.0]
[1738706704923,38.01312143,203.47,203.42,2.0]
[1738706705079,38.01312143,203.53,203.49,2.0]
[1738706705279,38.01312143,203.57,203.53,2.0]
[1738706705520,13.23227696,203.69,203.53,2.0]
[1738706705521,38.01312143,203.59,203.56,1.0]
[1738706705691,38.01312143,203.61,203.58,1.0]
[1738706705880,38.01312143,203.61,203.6,1.0]
[1738706706081,38.01312143,203.61,203.54,1.0]
[1738706706312,38.01312143,203.55,203.48,1.0]
[1738706706482,38.01312143,203.58,203.55,1.0]
[1738706706680,0.10794707,203.67,203.65,1.0]
[1738706706681,38.01312143,203.66,203.65,1.0]
[1738706706983,20.0,203.63,203.57,312.0]
[1738706707208,38.01312143,203.58,203.53,1.0]
[1738706707408,38.01312143,203.56,203.54,1.0]
[1738706707583,0.91598467,203.55,203.51,1.0]
[1738706707782,0.12549,203.58,203.49,1.0]
[1738706707783,38.01312143,203.52,203.49,1.0]
[1738706707983,38.01312143,203.56,203.55,1.0]
[1738706708285,1.02393174,203.67,203.56,1.0]
[1738706708488,38.01312143,203.58,203.54,1.0]
[1738706708690,0.09130284,203.56,203.55,1.0]
[1738706708900,0.09130284,203.56,203.55,14.41184853]
[1738706709107,0.09130284,203.56,203.55,1.0]
[1738706709926,0.09130284,203.56,203.55,52.42496996]
[1738706710096,0.09130284,203.56,203.55,1.0]
[1738706710280,0.09130284,203.56,203.55,312.0]
[1738706711019,0.59326284,203.56,203.55,312.0]
[1738706711226,20.50196,203.53,203.41,2.0]
[1738706711383,38.01312143,203.46,203.43,1.0]
[1738706711584,38.01312143,203.5,203.46,2.0]
[1738706711798,38.01312143,203.48,203.41,1.0]
[1738706711999,0.91598467,203.49,203.46,1.0]
[1738706712000,38.01312143,203.49,203.46,1.0]
[1738706712413,0.03,203.54,203.52,1.0]
[1738706712600,0.03,203.54,203.52,2.0]
[1738706713225,38.01312143,203.53,203.48,1.0]
[1738706713425,38.01312143,203.5,203.46,1.0]
[1738706713631,38.01312143,203.48,203.43,1.0]
[1738706714017,38.01312143,203.48,203.46,1.0]
[1738706714315,0.91598467,203.47,203.46,312.0]
[1738706714541,38.01312143,203.48,203.46,312.0]
[1738706715466,20.0,203.45,203.4,1.0]
[1738706715745,38.01312143,203.41,203.4,1.0]
[1738706716408,0.50196,203.4,203.35,0.063]
[1738706716640,38.01312143,203.36,203.35,0.063]
[1738706716848,38.51508143,203.36,203.35,0.063]
[1738706717716,38.01312143,203.36,203.35,0.063]
[1738706718438,38.38959143,203.36,203.35,312.063]
[1738706719270,20.0,203.33,203.27,1.0]
[1738706719444,38.01312143,203.28,203.27,1.0]
[1738706719757,20.0,203.26,203.25,0.063]
[1738706719937,58.01312143,203.26,203.25,0.063]
[1738706720543,58.38959143,203.26,203.25,0.063]
[1738706720946,58.38959143,203.26,203.14,2.063]
[1738706720947,0.50196,203.25,203.14,2.063]
[1738706721147,38.01312143,203.17,203.14,1.063]
[1738706721459,1.19939704,203.29,203.21,1.0]
[1738706721460,38.01312143,203.25,203.21,1.0]
[1738706721658,0.91598467,203.29,203.14,13.47484853]
[1738706721659,38.01312143,203.29,203.25,1.0]
[1738706721850,0.91598467,203.35,203.31,1.0]
[1738706721851,38.9291061,203.35,203.31,1.0]
[1738706722056,6.24,203.41,203.33,1.0]
[1738706722057,38.01312143,203.37,203.33,1.0]
[1738706722234,38.51508143,203.37,203.36,312.0]
[1738706722554,38.01312143,203.37,203.36,312.0]
[1738706722759,38.01312143,203.39,203.35,1.0]
[1738706723055,6.24,203.51,203.32,1.0]
[1738706723056,38.01312143,203.47,203.42,1.0]
[1738706723231,12.4117,203.51,203.46,1.0]
[1738706723232,38.9291061,203.51,203.46,1.0]
[1738706723441,38.01312143,203.53,203.5,1.0]
[1738706723638,0.03,203.54,203.52,2.0]
[1738706723850,0.03,203.54,203.52,1.0]
[1738706724054,38.01312143,203.53,203.48,1.0]